bitfinex-derivatives/quotes_SOLF0:USTF0_20250416
["timestamp","ask_amount","ask_price","bid_price","bid_amount"]
[1744827341989,48.5713604,127.27,127.2,4.3725]
[1744827342286,48.5713604,127.25,127.13,48.5713604]
[1744827342482,7.8606,127.22,127.14,8.2085]
[1744827342688,48.5713604,127.25,127.14,8.2085]
[1744827342886,0.05380591,127.19,127.17,0.05611569]
[1744827343086,0.05352222,127.19,127.17,0.05540309]
[1744827343283,618.86,127.26,127.17,56.48676349]
[1744827343485,7.8595,127.24,127.15,48.5713604]
[1744827343687,618.86,127.26,127.15,48.5713604]
[1744827344491,0.05866764,127.22,127.19,0.0573452]
[1744827344791,618.86,127.26,127.19,0.0573452]
[1744827345186,7.8596,127.23,127.2,7.8613]
[1744827345690,7.8596,127.23,127.19,7.8617]
[1744827345889,0.05055349,127.22,127.2,0.05026183]
[1744827346088,56.4321604,127.21,127.2,0.05026183]
[1744827346487,56.4321604,127.21,127.2,6.183e-05]
[1744827346691,56.4321604,127.21,127.13,4.0165]
[1744827346692,7.8639,127.16,127.13,7.8657]
[1744827347086,101.8313604,127.19,127.1,4.2887]
[1744827347391,101.8313604,127.19,127.11,7.8664]
[1744827347392,48.5713604,127.17,127.11,7.8664]
[1744827347594,48.5713604,127.17,127.1,4.2887]
[1744827347794,0.05736949,127.15,127.13,0.05370773]
[1744827348194,7.8651,127.14,127.13,0.05370773]
[1744827348596,48.62872989,127.15,127.05,4.2887]
[1744827348795,48.5713604,127.11,127.02,4.3195]
[1744827348996,48.5713604,127.11,127.03,4.2887]
[1744827349192,7.8703,127.06,126.98,48.5713604]
[1744827349388,48.5713604,127.07,127.01,7.8728]
[1744827349588,48.5713604,127.07,127.03,0.05955442]
[1744827349787,0.05975667,127.05,127.03,0.05955442]
[1744827350196,52.5519604,127.11,127.03,0.05955442]
[1744827350397,52.5519604,127.11,127.01,48.5713604]
[1744827350597,52.5519604,127.11,127.04,7.8708]
[1744827350794,52.5519604,127.11,126.99,52.6260604]
[1744827350991,52.5519604,127.11,127.01,48.5713604]
[1744827351298,0.05042938,127.07,127.05,0.05017963]
[1744827352295,0.05042938,127.07,127.06,7.8701]
[1744827352598,53.26,127.12,127.05,0.05017963]
[1744827352994,4.0751,127.16,127.06,48.5713604]
[1744827353295,57.3751,127.16,127.07,4.3364]
[1744827353500,0.05859231,127.12,127.1,0.05862256]
[1744827353799,0.05859231,127.12,127.1,7.92622256]
[1744827354301,0.05859231,127.12,127.11,7.867]
[1744827354499,53.3,127.16,127.1,0.05862256]
[1744827354701,61.1639,127.16,127.1,0.05862256]
[1744827355093,53.3,127.16,127.12,7.866]
[1744827355500,0.0513527,127.15,127.13,0.05631741]
[1744827355703,0.0513527,127.15,127.13,0.05597843]
[1744827356099,0.0513527,127.15,127.14,7.8651]
[1744827356398,48.5713604,127.22,127.13,0.05597843]
[1744827356598,48.5713604,127.22,127.08,53.3]
[1744827356599,101.8713604,127.22,127.12,48.5713604]
[1744827356802,101.8713604,127.22,127.08,101.8713604]
[1744827356998,101.8713604,127.22,127.11,48.5713604]
[1744827357401,0.04982888,127.18,127.15,0.04977575]
[1744827357803,53.3,127.22,127.15,0.04977575]
[1744827358709,0.05606775,127.2,127.15,0.04977575]
[1744827359107,48.62742815,127.2,127.15,0.04977575]
[1744827359304,7.8624,127.19,127.15,0.04977575]
[1744827359508,48.5713604,127.16,127.15,0.04977575]
[1744827359809,53.08,127.16,127.12,7.8662]
[1744827360309,60.9442,127.16,127.12,7.8662]
[1744827360609,53.08,127.16,127.13,7.8657]
[1744827360810,53.14048856,127.16,127.13,0.05905782]
[1744827361010,0.06048856,127.16,127.13,0.05905782]
[1744827363007,7.8646,127.15,127.13,0.05905782]
[1744827363312,0.06048856,127.16,127.13,0.05905782]
[1744827363613,53.08,127.21,127.15,48.5713604]
[1744827363815,105.6468604,127.26,127.15,48.5713604]
[1744827364113,56.5206604,127.26,127.15,48.5713604]
[1744827364312,53.1,127.28,127.17,48.5713604]
[1744827364704,0.05636768,127.24,127.22,7.8597]
[1744827364913,0.05636768,127.24,127.22,7.91899501]
[1744827365215,0.05636768,127.24,127.23,7.8596]
[1744827365714,0.05636768,127.24,127.22,7.91919501]
[1744827365912,0.05636768,127.24,127.22,0.05929501]
[1744827367016,48.62772808,127.24,127.22,0.05929501]
[1744827367209,56.48772808,127.24,127.14,4.1379]
[1744827367409,48.5713604,127.19,127.1,8.1061]
[1744827368217,0.0534874,127.16,127.13,0.05446262]
[1744827368916,48.5713604,127.15,127.13,0.05446262]
[1744827369219,7.8677,127.1,127.07,7.8692]
[1744827369617,48.5713604,127.12,127.03,12.3761]
[1744827369618,7.8667,127.12,127.03,12.3761]
[1744827369818,101.6513604,127.14,127.03,60.9474604]
[1744827370015,48.5713604,127.12,127.03,12.3761]
[1744827370318,0.05191715,127.09,127.07,7.8692]
[1744827370616,0.05191715,127.09,127.06,0.0557343]
[1744827370818,7.8694,127.08,127.06,0.0557343]
[1744827371009,0.05191715,127.09,127.06,0.0557343]
[1744827372819,368.164,127.18,127.06,48.6270947]
[1744827373120,47.1504,127.25,127.1,48.5713604]
[1744827373121,48.5713604,127.2,127.1,48.5713604]
[1744827374918,48.5713604,127.16,127.08,4.3171]
[1744827375319,53.1,127.18,127.03,4.0055]
[1744827375320,48.5713604,127.14,127.03,4.0055]
[1744827375521,48.5713604,127.14,127.04,48.5713604]
[1744827375819,0.05215157,127.1,127.09,7.8679]
[1744827376122,0.05412386,127.11,127.08,0.05662085]
[1744827377422,0.05412386,127.11,127.09,7.8682]
[1744827377623,0.05412386,127.11,127.08,0.05662085]
[1744827378322,7.868,127.1,127.08,0.05662085]
[1744827378925,48.5713604,127.1,127.01,4.238]
[1744827379221,48.5713604,127.1,126.96,1.36918931]
[1744827379222,48.5713604,127.08,126.98,4.0705]
[1744827379416,7.8713,127.04,127.01,7.8732]
[1744827379623,101.6713604,127.06,126.97,4.238]
[1744827379824,53.1,127.06,127.0,48.5713604]
[1744827380025,0.05664333,127.04,127.02,0.05275873]
[1744827380225,0.05972754,127.04,127.02,0.0508821]
[1744827380419,0.05972754,127.04,127.03,7.8719]
[1744827380717,0.05972754,127.04,127.02,0.0508821]
[1744827381324,60.61278794,127.04,126.93,4.3793]
[1744827381525,48.5713604,127.03,126.93,4.3793]
[1744827382022,48.5713604,126.99,126.91,4.2792]
[1744827382324,0.05797481,126.96,126.94,0.0536294]
[1744827382625,0.05797481,126.96,126.94,7.9309294]
[1744827383024,0.05797481,126.96,126.94,0.0536294]
[1744827383826,56.4482604,126.95,126.94,0.0536294]
[1744827384020,48.62933521,126.96,126.86,4.3434]
[1744827384220,7.8785,126.93,126.89,7.8805]
[1744827384421,4.0077,126.98,126.88,48.5713604]
[1744827384915,7.8782,126.93,126.92,0.06017128]
[1744827385415,0.05454133,126.94,126.92,0.06017128]
[1744827386022,7.8782,126.93,126.92,0.06017128]
[1744827387024,101.7113604,126.93,126.82,52.7699604]
[1744827387218,48.5713604,126.91,126.82,4.1986]
[1744827387418,101.7113604,126.93,126.82,52.7699604]
[1744827387623,53.14,126.93,126.86,48.5713604]
[1744827387821,53.14,126.93,126.88,48.5713604]
[1744827388016,0.04957919,126.92,126.89,0.0510955]
[1744827388224,0.04957919,126.92,126.89,7.9312955]
[1744827388225,0.05695698,126.92,126.89,7.9312955]
[1744827388625,0.05695698,126.92,126.89,0.0510955]
[1744827389423,48.5713604,126.91,126.84,7.8833]
[1744827389628,7.8813,126.88,126.84,7.8833]
[1744827389828,53.14,126.93,126.82,4.1986]
[1744827390128,7.881,126.89,126.82,4.1986]
[1744827390323,48.5713604,126.92,126.82,4.1986]
[1744827390526,0.05483164,126.87,126.85,0.05165191]
[1744827390729,0.04983996,126.87,126.85,0.05211932]
[1744827390923,53.14,126.93,126.85,0.05211932]
[1744827391124,53.14,126.93,126.84,48.5713604]
[1744827391422,48.5713604,126.98,126.86,48.5713604]
[1744827391623,52.96,126.98,126.88,48.5713604]
[1744827391826,52.96,126.98,126.9,48.5713604]
[1744827392028,0.05828229,126.95,126.93,0.0597665]
[1744827392231,0.055322,126.95,126.93,0.0509952]
[1744827392630,0.055322,126.95,126.94,7.8775]
[1744827392822,52.96,127.02,126.93,0.0509952]
[1744827393020,52.96,127.02,126.97,7.8756]
[1744827393224,52.96,127.02,126.92,48.5713604]
[1744827393732,7.8733,127.01,126.97,7.8753]
[1744827393929,0.05388625,127.0,126.98,0.05048305]
[1744827395528,0.05388625,127.0,126.9,48.5713604]
[1744827395729,7.8752,126.98,126.94,7.8772]
[1744827396332,48.5713604,126.99,126.89,4.0858]
[1744827396627,48.5713604,126.99,126.82,101.5313604]
[1744827396628,48.5713604,126.93,126.82,101.5313604]
[1744827396832,0.05119579,126.89,126.86,0.05684861]
[1744827398322,7.8814,126.88,126.86,0.05684861]
[1744827398725,7.8817,126.88,126.86,0.05684861]
[1744827399024,0.05119579,126.89,126.86,0.05684861]
[1744827399332,56.4532604,126.87,126.86,0.05684861]
[1744827399636,52.96,126.87,126.78,48.5713604]
[1744827399833,7.8826,126.86,126.82,7.8846]
[1744827400036,52.96,126.87,126.82,7.8846]
[1744827400234,52.96,126.87,126.78,48.5713604]
[1744827400436,7.8826,126.86,126.82,7.8846]
[1744827400628,0.057447,126.84,126.81,0.0549476]
[1744827401036,0.057447,126.84,126.83,7.8844]
[1744827401335,52.96,126.92,126.82,52.7076604]
[1744827401535,620.16,126.97,126.88,48.5713604]
[1744827402034,620.16,126.97,126.9,48.5713604]
[1744827402239,620.16,126.97,126.86,48.5713604]
[1744827402437,0.05000885,126.95,126.92,0.05970183]
[1744827402635,7.8779,126.94,126.92,0.05970183]
[1744827403338,7.92720885,126.95,126.92,0.05970183]
[1744827403636,0.05000885,126.95,126.92,0.05970183]
[1744827403841,0.05000885,126.95,126.94,56.4488604]
[1744827404041,0.05000885,126.95,126.94,7.8775]
[1744827404535,54.53443123,127.03,126.94,48.5713604]
[1744827404840,7.8739,127.0,126.94,48.5713604]
[1744827405041,7.8739,127.0,126.97,7.8755]
[1744827405335,7.8745,126.99,126.92,48.5713604]
[1744827405538,0.05201473,126.97,126.94,0.05040122]
[1744827405742,0.05411952,126.97,126.94,0.05265634]
[1744827406640,7.8768,126.96,126.94,0.05265634]
[1744827408039,7.8769,126.95,126.94,0.05265634]
[1744827408243,0.05411952,126.97,126.94,0.05265634]
[1744827408745,7.8769,126.95,126.94,0.05265634]
[1744827409242,56.4482604,126.95,126.94,0.05265634]
[1744827409545,48.5713604,126.93,126.86,4.2411]
[1744827409741,52.96,126.96,126.88,48.5713604]
[1744827409936,4.3929,126.98,126.9,48.5713604]
[1744827410144,52.96,127.01,126.92,48.5713604]
[1744827410347,0.05960129,126.98,126.95,0.05509537]
[1744827410542,0.05960129,126.98,126.95,4.24709537]
[1744827410744,1.57443123,127.03,126.96,97.1427208]
[1744827411046,620.2,127.12,127.01,48.5713604]
[1744827411745,620.2,127.12,127.03,48.5713604]
[1744827411946,0.0516704,127.08,127.05,0.05833784]
[1744827412147,0.05312826,127.08,127.05,0.05833784]
[1744827412445,0.05312826,127.08,126.97,7.8752]
[1744827412446,48.5713604,127.07,126.97,7.8752]
[1744827412645,56.48448866,127.08,126.96,52.96]
[1744827412646,48.5713604,127.05,126.96,52.96]
[1744827412838,7.8746,126.99,126.96,60.836]
[1744827413036,48.5713604,127.05,126.95,8.361]
[1744827413446,0.05022856,127.01,126.99,0.05080325]
[1744827413941,7.8738,127.0,126.99,0.05080325]
[1744827415541,7.92382856,127.01,126.99,0.05080325]
[1744827415748,0.05022856,127.01,126.99,0.05080325]
[1744827416642,7.8738,127.0,126.99,0.05080325]
[1744827417449,109.3913604,127.0,126.92,4.1977]
[1744827417647,52.94,127.0,126.92,52.7690604]
[1744827417849,52.94,127.0,126.96,7.8763]
[1744827418050,52.94,127.0,126.92,52.7690604]
[1744827418251,52.94,127.0,126.95,7.8769]
[1744827418446,0.05803639,126.99,126.96,0.05159415]
[1744827418646,7.93283639,126.99,126.96,0.05159415]
[1744827419150,7.93273639,126.99,126.96,0.05159415]
[1744827419344,0.05803639,126.99,126.96,0.05159415]
[1744827419848,0.05803639,126.99,126.96,7.92749415]
[1744827420048,0.05803639,126.99,126.96,0.05159415]
[1744827420848,0.05803639,126.99,126.97,7.8757]
[1744827421047,0.05803639,126.99,126.96,48.62295455]
[1744827421244,52.74,127.12,126.98,48.5713604]
[1744827421448,52.74,127.12,127.04,48.5713604]
[1744827421950,48.5713604,127.08,127.0,4.1816]
[1744827422249,0.05765276,127.05,127.03,0.04968237]
[1744827422452,7.8726,127.02,126.99,4.2292]
[1744827422654,0.0497116,127.02,126.99,0.05689098]
[1744827422954,0.0497116,127.02,126.99,7.93109098]
[1744827423155,0.0497116,127.02,126.99,0.05689098]
[1744827424657,0.0497116,127.02,127.0,7.8735]
[1744827424857,105.5444604,127.11,127.0,48.5713604]
[1744827425059,48.5713604,127.1,126.98,52.7120604]
[1744827425253,48.5713604,127.08,126.98,4.1407]
[1744827425654,48.5713604,127.1,126.98,52.7120604]
[1744827425856,0.05346096,127.05,127.03,0.05331159]
[1744827426054,0.06040913,127.05,127.04,48.5713604]
[1744827426254,8.7524,127.13,127.04,52.9630604]
[1744827426456,8.7524,127.13,127.06,48.5713604]
[1744827426656,8.7524,127.13,127.05,4.0594]
[1744827426852,48.5713604,127.12,127.04,8.4073]
[1744827427053,48.5713604,127.09,126.99,4.0594]
[1744827427363,52.72,127.1,127.03,0.05157213]
[1744827427550,0.05863672,127.08,127.03,0.05157213]
[1744827427954,0.05863672,127.08,127.07,7.8695]
[1744827428154,4.3977,127.13,127.06,48.62790081]
[1744827428361,7.8658,127.13,127.08,48.5713604]
[1744827428757,52.72,127.15,127.07,8.6056]
[1744827429263,0.06025471,127.12,127.1,0.05587525]
[1744827430159,7.867,127.11,127.1,0.05587525]
[1744827430362,56.49161511,127.12,126.98,52.7]
[1744827430561,48.5713604,127.06,127.0,7.8734]
[1744827430762,48.5713604,127.06,126.97,4.2151]
[1744827431464,0.05794987,127.03,127.0,0.0533155]
[1744827431766,7.8732,127.01,127.0,0.05056695]
[1744827431955,0.05794987,127.03,127.0,0.05056695]
[1744827432162,7.8729,127.02,127.0,0.05056695]
[1744827432355,101.2713604,127.02,126.94,8.4562]
[1744827432658,48.5713604,127.0,126.9,4.2151]
[1744827432865,48.5713604,126.98,126.9,4.2151]
[1744827433063,48.5713604,127.0,126.9,4.2151]
[1744827433363,48.5713604,126.96,126.89,4.2334]
[1744827433565,101.3220114,126.96,126.89,4.2334]
[1744827433862,101.3220114,126.96,126.88,11.9415]
[1744827434060,101.2713604,126.96,126.88,11.9415]
[1744827434261,101.2713604,126.96,126.88,4.0606]
[1744827434463,48.5713604,126.94,126.84,4.2334]
[1744827434657,0.05314097,126.9,126.88,0.05046771]
[1744827434855,48.62450137,126.9,126.78,566.82]
[1744827435058,4.1825,126.95,126.76,52.7]
[1744827435059,48.5713604,126.88,126.77,52.6319604]
[1744827435261,7.8833,126.85,126.8,7.8858]
[1744827435465,48.5713604,126.86,126.77,4.0606]
[1744827435965,7.885,126.82,126.8,0.0548121]
[1744827436165,0.05549352,126.83,126.8,0.0548121]
[1744827436566,101.3113604,126.82,126.71,619.56]
[1744827436972,101.3113604,126.82,126.72,7.8907]
[1744827437162,48.5713604,126.78,126.68,48.5713604]
[1744827437361,48.5713604,126.78,126.67,13.0592]
[1744827437564,7.8883,126.77,126.72,7.8908]
[1744827437865,52.74,126.82,126.72,48.5713604]
[1744827438066,101.3113604,126.82,126.68,4.2876]
[1744827438262,48.5713604,126.78,126.68,52.8589604]
[1744827438566,48.5713604,126.76,126.68,4.2876]
[1744827438969,0.05135279,126.73,126.71,0.04995101]
[1744827439170,0.05135279,126.73,126.67,4.3915]
[1744827439369,7.8931,126.7,126.61,61.5004604]
[1744827439564,48.5713604,126.72,126.58,52.76]
[1744827439874,48.5713604,126.74,126.63,48.5713604]
[1744827440170,0.0551482,126.7,126.67,0.05800668]
[1744827440875,0.0551482,126.7,126.68,7.8932]
[1744827441174,0.0551482,126.7,126.67,0.05800668]
[1744827441371,0.0551482,126.7,126.67,7.95210668]
[1744827441571,0.0551482,126.7,126.67,0.05800668]
[1744827441771,52.74,126.76,126.67,48.62936708]
[1744827441972,60.6292,126.76,126.7,7.8921]
[1744827442173,4.2032,126.8,126.71,48.5713604]
[1744827442468,7.8879,126.78,126.71,48.5713604]
[1744827442673,48.5713604,126.79,126.7,52.78]
[1744827442870,0.05748387,126.76,126.73,0.05881859]
[1744827443074,7.8898,126.75,126.73,0.05881859]
[1744827443272,0.05748387,126.76,126.73,0.05881859]
[1744827443474,52.78,126.84,126.73,48.63017899]
[1744827443673,7.8855,126.82,126.76,7.8883]
[1744827443974,52.78,126.84,126.75,48.5713604]
[1744827444678,0.05952207,126.81,126.78,0.05584017]
[1744827446581,48.63088247,126.81,126.78,0.05584017]
[1744827447280,0.05952207,126.81,126.78,0.05584017]
[1744827447880,48.63088247,126.81,126.78,0.05584017]
[1744827448081,7.8881,126.77,126.71,52.78]
[1744827448480,7.8881,126.77,126.68,8.1968]
[1744827448679,7.8881,126.77,126.69,4.1593]
[1744827448879,7.8881,126.77,126.72,7.8908]
[1744827449080,48.5713604,126.81,126.7,48.5713604]
[1744827449280,7.504e-05,126.76,126.74,48.5713604]
[1744827449583,48.5713604,126.83,126.72,101.1513604]
[1744827450081,52.78,126.84,126.72,101.1513604]
[1744827450281,48.5713604,126.83,126.72,52.58]
[1744827450482,0.05656486,126.79,126.77,0.0551107]
[1744827450683,48.62792526,126.79,126.77,0.0551107]
[1744827451183,0.05656486,126.79,126.77,0.0551107]
[1744827451683,7.94376486,126.79,126.77,0.0551107]
[1744827452079,0.05656486,126.79,126.77,0.0551107]
[1744827452279,7.8875,126.78,126.77,0.0551107]
[1744827452881,7.8891,126.76,126.7,365.0]
[1744827453080,48.5713604,126.83,126.69,4.1593]
[1744827453081,48.5713604,126.77,126.69,4.1593]
[1744827453277,7.8906,126.73,126.69,12.0519]
[1744827453479,48.5713604,126.75,126.69,4.1593]
[1744827453680,48.5713604,126.73,126.61,52.9729604]
[1744827453881,7.943634,126.68,126.66,0.05361361]
[1744827454084,0.05726908,126.68,126.66,0.05062679]
[1744827454488,7.8949,126.67,126.66,0.05062679]
[1744827454682,48.5713604,126.67,126.56,4.0566]
[1744827454995,48.5713604,126.69,126.58,8.5988]
[1744827455387,48.5713604,126.65,126.55,52.58]
[1744827455587,101.1513604,126.65,126.53,48.5713604]
[1744827455786,0.05755071,126.58,126.55,0.05167004]
[1744827456080,0.05275534,126.58,126.55,0.05927047]
[1744827456877,48.5713604,126.57,126.55,0.05927047]
[1744827457188,0.05275534,126.58,126.55,0.05927047]
[1744827458282,7.9012,126.56,126.55,0.05927047]
[1744827458478,48.5713604,126.57,126.46,7.9073]
[1744827458682,48.5713604,126.51,126.46,7.9073]
[1744827458891,52.62,126.52,126.42,48.5713604]
[1744827459084,48.5713604,126.5,126.4,48.5713604]
[1744827459279,48.5713604,126.5,126.38,61.2665604]
[1744827459484,0.05848076,126.45,126.44,7.9087]
[1744827459682,101.1913604,126.52,126.43,0.05594022]
[1744827459882,101.1913604,126.52,126.41,48.5713604]
[1744827460090,48.5713604,126.54,126.43,48.5713604]
[1744827460485,7.905,126.5,126.44,7.9085]
[1744827460685,0.05224924,126.48,126.46,0.05136526]
[1744827460986,7.9099,126.42,126.29,52.64]
[1744827461187,48.5713604,126.43,126.31,60.8084604]
[1744827461384,48.5713604,126.41,126.31,60.8084604]
[1744827461584,48.5713604,126.41,126.3,1.58353127]
[1744827461780,48.5713604,126.43,126.31,48.5713604]
[1744827461984,0.05727671,126.38,126.37,7.9125]
[1744827462185,52.64,126.48,126.37,48.5713604]
[1744827462385,52.64,126.48,126.4,48.5713604]
[1744827462590,60.5464,126.48,126.42,7.9097]
[1744827462786,52.64,126.48,126.4,48.5713604]
[1744827463289,0.04987623,126.45,126.43,0.05666126]
[1744827464289,7.9087,126.44,126.43,0.03093499]
[1744827464689,7.9104,126.42,126.36,7.9135]
[1744827464890,48.5713604,126.44,126.36,7.9135]
[1744827465390,48.5713604,126.44,126.34,7.9144]
[1744827465590,48.5713604,126.42,126.34,7.9144]
[1744827465893,0.05424043,126.4,126.38,0.05797319]
[1744827466093,52.66,126.45,126.36,48.5713604]
[1744827466284,60.5685,126.45,126.39,7.9113]
[1744827466484,52.66,126.45,126.39,7.9113]
[1744827466683,4.0528,126.47,126.38,48.5713604]
[1744827466899,7.9087,126.44,126.39,7.9116]
[1744827467193,0.05137397,126.43,126.4,0.0516577]
[1744827467690,0.05137397,126.43,126.4,48.6230181]
[1744827468196,0.05137397,126.43,126.4,0.0516577]
[1744827468696,0.05137397,126.43,126.42,7.9099]
[1744827468894,0.05137397,126.43,126.4,0.0516577]
[1744827469091,0.05137397,126.43,126.4,48.6230181]
[1744827469297,52.7,126.47,126.42,7.9099]
[1744827469598,568.58,126.5,126.4,48.5713604]
[1744827469894,7.9072,126.47,126.4,48.5713604]
[1744827470087,52.8992604,126.52,126.42,48.5713604]
[1744827470088,4.3279,126.52,126.42,48.5713604]
[1744827470293,0.06037029,126.48,126.46,0.05068149]
[1744827470493,0.0557385,126.48,126.46,48.62204189]
[1744827470691,1.37563,126.68,126.47,52.7]
[1744827470896,52.9510604,126.64,126.53,48.5713604]
[1744827471098,4.3797,126.64,126.55,48.5713604]
[1744827471402,57.0797,126.64,126.55,48.5713604]
[1744827471703,0.04991003,126.58,126.56,0.056714]
[1744827472801,52.7,126.64,126.56,0.056714]
[1744827473096,101.2713604,126.64,126.56,0.056714]
[1744827473301,101.2713604,126.58,126.48,4.4203]
[1744827473501,48.5713604,126.56,126.48,4.4203]
[1744827473699,48.5713604,126.56,126.48,12.3265]
[1744827473902,101.2713604,126.58,126.48,4.4203]
[1744827474098,48.5713604,126.56,126.48,4.4203]
[1744827474304,48.5713604,126.52,126.51,0.05676732]
[1744827474506,101.2713604,126.52,126.43,4.248]
[1744827474705,48.5713604,126.5,126.43,4.248]
[1744827475503,48.5713604,126.5,126.45,0.05871053]
[1744827475806,57.0214,126.52,126.45,0.05871053]
[1744827475807,0.05804576,126.48,126.45,0.05871053]
[1744827477509,52.7,126.52,126.45,0.05871053]
[1744827477810,569.08,126.55,126.46,48.5713604]
[1744827478303,569.08,126.55,126.49,7.9051]
[1744827478504,569.08,126.55,126.46,48.5713604]
[1744827478505,0.05442226,126.53,126.51,0.05071386]
[1744827478705,52.7,126.6,126.51,0.05071386]
[1744827479010,52.7,126.6,126.52,48.5713604]
[1744827479705,52.7,126.6,126.55,7.9014]
[1744827479916,0.05763355,126.57,126.55,7.9014]
[1744827480409,0.05763355,126.57,126.54,0.05835302]
[1744827480613,48.5713604,126.56,126.54,0.05835302]
[1744827481112,56.4713604,126.56,126.42,48.5713604]
[1744827481411,48.5713604,126.53,126.42,52.8253604]
[1744827481610,52.46,126.52,126.42,52.8253604]
[1744827481812,52.46,126.52,126.45,48.5713604]
[1744827482009,0.05747633,126.5,126.47,0.05457949]
[1744827482310,56.4971,126.56,126.47,48.62593989]
[1744827482506,4.0462,126.58,126.49,48.5713604]
[1744827483310,0.05382783,126.55,126.52,0.05832285]
[1744827483711,0.05382783,126.55,126.54,7.9024]
[1744827484316,0.05382783,126.55,126.53,7.9029]
[1744827484507,0.05382783,126.55,126.52,0.05832285]
[1744827485315,0.05382783,126.55,126.54,7.9024]
[1744827486115,0.05382783,126.55,126.52,0.05832285]
[1744827486513,0.31468,126.59,126.52,0.05832285]
[1744827486913,0.31468,126.59,126.54,48.5713604]
[1744827487110,52.46,126.64,126.56,48.5713604]
[1744827487417,4.3263,126.67,126.58,48.5713604]
[1744827487715,0.05503729,126.64,126.61,0.05884763]
[1744827488515,0.05503729,126.64,126.62,7.897]
[1744827488716,0.05503729,126.64,126.61,0.05884763]
[1744827489113,0.05503729,126.64,126.63,7.8968]
[1744827489313,52.46,126.72,126.62,48.5713604]
[1744827489514,106.53409059,126.73,126.62,48.5713604]
[1744827489515,106.53409059,126.73,126.64,48.5713604]
[1744827489814,106.53409059,126.73,126.66,48.5713604]
[1744827490417,0.05749629,126.71,126.68,0.0516969]
[1744827490617,7.94969629,126.71,126.68,0.0516969]
[1744827490809,0.05749629,126.71,126.68,0.0516969]
[1744827492218,7.94969629,126.71,126.68,0.0516969]
[1744827492415,101.0113604,126.7,126.62,4.2789]
[1744827493021,48.5713604,126.74,126.63,48.5713604]
[1744827493322,100.9913604,126.74,126.69,7.8928]
[1744827493525,52.42,126.74,126.65,48.5713604]
[1744827493715,48.5713604,126.7,126.62,4.2789]
[1744827494116,0.05334248,126.67,126.65,0.05525007]
[1744827495920,0.05334248,126.67,126.65,7.95075007]
[1744827496121,0.05334248,126.67,126.65,0.05525007]
[1744827496521,0.05334248,126.67,126.65,7.95045007]
[1744827496721,48.62470288,126.67,126.65,0.05525007]
[1744827496923,0.05334248,126.67,126.65,7.95045007]
[1744827497124,0.05334248,126.67,126.65,0.05525007]
[1744827498626,0.05334248,126.67,126.66,7.8949]
[1744827498822,0.05334248,126.67,126.65,0.05525007]
[1744827498823,48.5713604,126.75,126.65,0.05525007]
[1744827499023,48.5713604,126.75,126.62,48.5713604]
[1744827499218,48.5713604,126.71,126.59,474.2022604]
[1744827499524,48.5713604,126.67,126.59,60.6309]
[1744827499724,0.05617125,126.64,126.62,0.05694092]
[1744827499925,0.05654677,126.64,126.62,0.06045417]
[1744827500224,48.5713604,126.63,126.58,7.8993]
[1744827500424,4.274,126.64,126.55,4.3248]
[1744827500624,7.8998,126.59,126.55,12.2263]
[1744827500928,48.5713604,126.61,126.51,621.04]
[1744827501128,0.05707391,126.57,126.55,0.05497863]
[1744827501327,0.05275523,126.57,126.55,0.05497863]
[1744827501522,48.62411563,126.57,126.5,4.0894]
[1744827501828,48.5713604,126.53,126.42,48.5713604]
[1744827502125,48.5713604,126.53,126.43,4.0894]
[1744827502327,7.9041,126.52,126.48,7.9058]
[1744827502829,0.05402014,126.51,126.49,0.06012778]
[1744827503024,48.62538054,126.51,126.43,4.0894]
[1744827503232,48.5713604,126.55,126.44,48.5713604]
[1744827503523,48.5713604,126.51,126.43,4.0894]
[1744827503729,48.5713604,126.49,126.38,52.8700604]
[1744827503929,7.9066,126.48,126.39,8.1329]
[1744827504227,0.05226731,126.45,126.42,0.05020643]
[1744827504426,0.05226731,126.45,126.43,7.9087]
[1744827504922,0.05226731,126.45,126.42,0.05020643]
[1744827505519,48.5713604,126.43,126.33,52.44]
[1744827505722,48.5713604,126.43,126.33,61.0944]
[1744827505919,7.9108,126.41,126.36,7.9133]
[1744827506224,48.5713604,126.41,126.33,8.6544]
[1744827506524,48.5713604,126.37,126.36,0.05184394]
[1744827506728,48.5713604,126.37,126.25,109.6657604]
[1744827507627,0.06066263,126.32,126.3,7.97617157]
[1744827507829,0.05037721,126.32,126.3,0.05917157]
[1744827508130,0.05037721,126.32,126.31,7.9166]